bitfinex/quotes_ETHUSD_20240928
["timestamp","ask_amount","ask_price","bid_price","bid_amount"]
[1727566501039,3.73304,2678.8,2678.6,0.99601642]
[1727566501199,3.73304,2678.8,2678.5,0.75188478]
[1727566501394,3.73304,2678.8,2678.6,2.49012516]
[1727566501637,3.73304,2678.8,2678.5,0.75188478]
[1727566501832,3.73304,2678.8,2678.6,2.49012393]
[1727566502041,3.73304,2678.8,2678.5,0.75188478]
[1727566502237,3.73304,2678.8,2678.6,0.99605253]
[1727566502445,3.73304,2678.8,2678.4,5.59087594]
[1727566502738,3.73304,2678.8,2678.5,2.49025088]
[1727566502934,3.73304,2678.8,2678.6,2.49025088]
[1727566503238,3.73304,2678.8,2678.4,5.59087594]
[1727566503445,3.73304,2678.8,2678.5,2.4902485]
[1727566503649,3.73304,2678.8,2678.6,2.4902485]
[1727566503962,3.73304,2678.8,2678.5,0.78598869]
[1727566504139,3.73304,2678.8,2678.6,2.49041273]
[1727566504340,3.73304,2678.8,2678.5,0.78598869]
[1727566504511,3.73304,2678.8,2678.6,2.49055155]
[1727566504717,3.73304,2678.8,2678.5,0.78598869]
[1727566505029,3.73304,2678.8,2678.6,2.49055192]
[1727566505336,3.73304,2678.8,2678.5,0.78598869]
[1727566505526,3.73304,2678.8,2678.6,2.49075478]
[1727566505727,3.73304,2678.8,2678.5,0.78598869]
[1727566505940,3.73304,2678.8,2678.6,2.490761]
[1727566506246,3.73304,2678.8,2678.5,0.78598869]
[1727566506444,3.73304,2678.8,2678.6,2.49079285]
[1727566506738,3.73304,2678.8,2678.5,0.78598869]
[1727566506940,3.73304,2678.8,2678.6,2.4907987]
[1727566507244,3.73304,2678.8,2678.5,0.78598869]
[1727566507402,3.73304,2678.8,2678.6,2.49079892]
[1727566507602,3.73304,2678.8,2678.5,0.78598869]
[1727566507841,3.73304,2678.8,2678.6,2.49084385]
[1727566508144,3.73304,2678.8,2678.5,0.78598869]
[1727566508343,3.73315,2678.7,2678.6,0.99633825]
[1727566508574,3.73343,2678.5,2678.3,0.78598869]
[1727566508844,4.53853,2678.5,2678.4,2.49100082]
[1727566513969,0.8051,2678.4,2678.1,0.78598869]
[1727566514179,0.8051,2677.8,2677.7,0.78598869]
[1727566514381,0.8051,2677.8,2677.7,3.27615712]
[1727566514588,1.56390159,2678.0,2677.7,0.99606737]
[1727566514795,4.5391,2678.1,2677.8,0.47307374]
[1727566515156,3.73386,2678.2,2677.7,4.54946]
[1727566515378,3.73386,2678.2,2677.8,0.97604011]
[1727566515577,3.73386,2678.2,2677.7,4.54946]
[1727566515773,1.56390159,2678.4,2677.8,2.96876806]
[1727566515774,3.73357,2678.4,2677.8,2.96876806]
[1727566515975,3.73357,2678.4,2678.0,3.73411]
[1727566516192,3.73357,2678.4,2678.1,0.69882217]
[1727566516391,3.73357,2678.4,2678.0,3.73411]
[1727566516724,4.53854,2678.5,2678.1,0.03289478]
[1727566516926,4.53854,2678.5,2678.2,0.37670048]
[1727566517220,4.53854,2678.5,2678.2,0.03383578]
[1727566517718,4.53854,2678.5,2678.3,0.03368019]
[1727566517929,3.73341,2678.6,2678.2,0.815]
[1727566518081,3.73341,2678.6,2678.4,0.03368019]
[1727566518525,3.73341,2678.6,2678.2,4.54881]
[1727566518709,3.73341,2678.6,2678.5,0.03364129]
[1727566518881,3.73341,2678.6,2678.2,4.54881]
[1727566519081,3.73341,2678.6,2678.5,0.03364129]
[1727566519411,3.73341,2678.6,2678.3,0.828268]
[1727566519608,3.73341,2678.6,2678.5,0.03364129]
[1727566519781,3.73341,2678.6,2678.3,0.828268]
[1727566519981,3.73341,2678.6,2678.5,0.03364129]
[1727566520203,3.73341,2678.6,2678.3,0.828268]
[1727566520482,3.73341,2678.6,2678.4,0.5377078]
[1727566520708,3.73341,2678.6,2678.4,0.57134909]
[1727566523664,7.46678,2678.6,2678.4,0.57134909]
[1727566523978,7.46678,2678.6,2678.4,0.03364129]
[1727566524350,7.46678,2678.6,2678.2,0.815]
[1727566524543,7.46678,2678.6,2678.5,0.03364129]
[1727566524743,7.46678,2678.6,2678.2,0.815]
[1727566524968,3.73337,2678.6,2678.5,0.03364129]
[1727566525157,3.73337,2678.6,2678.2,0.815]
[1727566525361,3.73337,2678.6,2678.5,0.03364129]
[1727566525852,3.73337,2678.6,2678.2,0.815]
[1727566526053,3.73337,2678.6,2678.3,0.48853429]
[1727566528283,4.53827,2678.7,2678.3,0.48853429]
[1727566528581,3.73349,2678.5,2678.3,0.48853429]
[1727566528766,3.73357,2678.4,2678.3,0.03364129]
[1727566529155,3.73375,2678.3,2677.9,5.32193869]
[1727566529363,3.73375,2678.3,2678.0,2.43848528]
[1727566529583,3.73375,2678.3,2677.9,2.61108875]
[1727566529787,3.73375,2678.3,2678.0,0.97537389]
[1727566530089,3.73375,2678.3,2677.9,0.8017]
[1727566530243,3.73375,2678.3,2678.0,0.97538858]
[1727566530445,3.73375,2678.3,2677.9,0.8017]
[1727566530641,3.73375,2678.3,2678.0,0.97536252]
[1727566530845,3.73375,2678.3,2677.9,0.8017]
[1727566531090,3.73375,2678.3,2678.0,0.97536308]
[1727566531275,3.73375,2678.3,2677.9,5.55937006]
[1727566531462,3.73375,2678.3,2678.0,0.97535854]
[1727566531794,3.73375,2678.3,2677.9,5.55937006]
[1727566531953,3.73375,2678.3,2678.0,0.97534269]
[1727566532152,3.73375,2678.3,2677.9,5.55937006]
[1727566532473,3.73385,2678.2,2678.0,0.97534287]
[1727566532675,3.73385,2678.2,2677.9,0.8017]
[1727566532981,3.73385,2678.2,2678.0,0.97533096]
[1727566533187,3.73372,2678.3,2677.9,5.18593606]
[1727566533390,3.73372,2678.3,2678.0,0.97531041]
[1727566533687,3.73372,2678.3,2677.9,5.18593606]
[1727566533892,3.73372,2678.3,2678.0,0.97531544]
[1727566534185,3.73372,2678.3,2677.9,5.18593606]
[1727566534395,3.73372,2678.3,2678.0,0.97531206]
[1727566534580,3.73372,2678.3,2677.9,5.18593606]
[1727566534750,3.73372,2678.3,2678.0,0.97530641]
[1727566534949,3.73372,2678.3,2677.9,5.18593606]
[1727566535150,3.73372,2678.3,2678.1,0.10316554]
[1727566535375,3.73372,2678.3,2677.9,5.18593606]
[1727566535577,3.73372,2678.3,2678.2,0.10316554]
[1727566535758,3.73372,2678.3,2677.9,4.53596]
[1727566535959,3.73372,2678.3,2678.2,0.10316554]
[1727566536145,3.73372,2678.3,2677.9,4.53596]
[1727566536350,3.73372,2678.3,2678.0,1.0784687]
[1727566536547,3.73372,2678.3,2678.0,0.10316554]
[1727566540186,1.56390159,2678.2,2678.0,0.10316554]
[1727566540391,4.53929,2678.1,2678.0,0.10316554]
[1727566540550,0.8053,2678.1,2677.6,5.32230869]
[1727566540751,3.73414,2678.0,2677.7,2.54160791]
[1727566540963,3.73414,2678.0,2677.7,0.10322776]
[1727566541291,0.8053,2678.1,2677.7,0.10322776]
[1727566541458,4.53935,2678.1,2677.7,0.10322776]
[1727566547581,4.53935,2678.1,2677.7,3.83776776]
[1727566553643,4.53935,2678.1,2677.8,0.97539284]
[1727566553850,4.53935,2678.1,2677.8,0.10357001]
[1727566554048,4.53935,2678.1,2677.7,3.73454]
[1727566554247,4.53935,2678.1,2677.9,0.10357001]
[1727566554450,4.53935,2678.1,2677.7,3.73454]
[1727566554649,4.53935,2678.1,2678.0,0.10357001]
[1727566554853,4.53935,2678.1,2677.7,3.73454]
[1727566555052,4.53935,2678.1,2678.0,0.10357001]
[1727566555257,4.53935,2678.1,2677.7,3.73454]
[1727566555415,4.53935,2678.1,2678.0,0.10357001]
[1727566555616,4.53935,2678.1,2677.7,3.73454]
[1727566555811,4.53935,2678.1,2677.8,0.97542718]
[1727566556030,4.53935,2678.1,2677.8,0.10357001]
[1727566556420,4.53935,2678.1,2677.7,3.73454]
[1727566556631,4.53935,2678.1,2677.9,0.10357001]
[1727566556827,4.53935,2678.1,2677.7,3.73454]
[1727566557055,4.53935,2678.1,2678.0,0.10357001]
[1727566557259,4.53935,2678.1,2677.7,3.73454]
[1727566557556,4.53935,2678.1,2677.8,0.97548284]
[1727566557779,4.53935,2678.1,2677.7,3.73454]
[1727566557969,4.53935,2678.1,2677.9,0.10357001]
[1727566558371,4.53935,2678.1,2677.7,3.73454]
[1727566558672,4.53935,2678.1,2677.8,0.97548359]
[1727566558845,4.53935,2678.1,2677.8,0.10357001]
[1727566559213,4.53935,2678.1,2677.7,3.73454]
[1727566559418,4.53935,2678.1,2677.9,0.10357001]
[1727566559617,4.53935,2678.1,2677.7,3.73454]
[1727566559819,4.53935,2678.1,2678.0,0.10357001]
[1727566560048,4.53935,2678.1,2677.7,3.73454]
[1727566560358,4.53935,2678.1,2677.8,0.97555646]
[1727566560595,4.53935,2678.1,2677.9,0.10357001]
[1727566561100,4.53935,2678.1,2677.7,3.73454]
[1727566561296,4.53935,2678.1,2678.0,0.10357001]
[1727566561903,4.53935,2678.1,2677.7,3.73454]
[1727566562192,4.53935,2678.1,2677.8,0.97563333]
[1727566562398,4.53935,2678.1,2677.8,0.10355445]
[1727566562596,4.53935,2678.1,2677.7,4.75801905]
[1727566562795,4.53935,2678.1,2677.9,0.10355445]
[1727566563000,4.53935,2678.1,2677.7,3.73454]
[1727566563206,4.53935,2678.1,2678.0,0.10355445]
[1727566563498,4.53935,2678.1,2677.7,3.73454]
[1727566563675,4.54348,2678.4,2678.0,0.10355445]
[1727566563878,4.54348,2678.4,2678.0,3.8086955]
[1727566564065,4.54348,2678.4,2678.1,0.10355445]
[1727566564271,4.54348,2678.4,2678.1,0.9399879]
[1727566565010,3.73368,2678.4,2678.1,0.9399879]
[1727566567008,3.73371,2678.3,2678.1,0.9399879]
[1727566567169,3.73371,2678.3,2678.1,0.10355445]
[1727566567370,3.73371,2678.3,2677.9,5.31274869]
[1727566567571,3.73371,2678.3,2678.0,2.54244656]
[1727566567886,3.73371,2678.3,2678.1,0.97561596]
[1727566568091,3.73371,2678.3,2678.0,0.10340665]
[1727566568276,3.73371,2678.3,2678.1,0.97563047]
[1727566568480,3.73371,2678.3,2678.1,0.10340665]
[1727566568776,3.73371,2678.3,2677.9,5.31274869]
[1727566568990,3.73371,2678.3,2678.0,3.56502138]
[1727566569186,3.73371,2678.3,2678.1,0.97564987]
[1727566569398,3.73371,2678.3,2678.0,1.02249006]
[1727566569711,3.73371,2678.3,2678.2,0.10340665]
[1727566569915,3.73371,2678.3,2678.0,1.02249006]
[1727566570119,3.73349,2678.5,2678.2,0.10340665]
[1727566570271,3.73349,2678.5,2678.1,5.34317174]
[1727566570272,3.73349,2678.5,2678.1,4.36750388]
[1727566570786,3.73349,2678.5,2678.2,0.10340665]
[1727566571474,3.73353,2678.5,2678.2,0.10340665]
[1727566572513,3.73359,2678.4,2678.2,0.10340665]
[1727566575617,3.73359,2678.4,2678.0,3.73412]
[1727566575918,3.73359,2678.4,2678.3,0.10320442]
[1727566576140,3.73359,2678.4,2678.0,3.73412]
[1727566576425,3.73359,2678.4,2678.1,0.97580774]
[1727566576635,3.73359,2678.4,2678.1,0.10320442]
[1727566590902,0.8098,2678.6,2678.1,0.10320442]
[1727566591056,3.73308,2678.8,2678.3,3.73358]
[1727566591374,4.5278,2678.9,2678.4,1.07363734]
[1727566591375,3.73317,2678.7,2678.4,1.07363734]
[1727566591584,3.73317,2678.7,2678.4,0.10308775]
[1727566592340,4.5282,2678.6,2678.4,0.10308775]
[1727566592541,4.5282,2678.6,2678.2,4.56374]
[1727566592773,4.5282,2678.6,2678.3,2.43883212]
[1727566592960,4.5282,2678.6,2678.3,0.10308775]
[1727566593162,4.5282,2678.6,2678.2,9.73623875]
[1727566593378,0.7949,2678.6,2678.3,2.54187667]
[1727566593584,0.7949,2678.6,2678.3,0.10308775]
[1727566593885,0.7949,2678.6,2678.2,8.95025006]
[1727566594054,0.7949,2678.6,2678.4,0.10308775]
[1727566594384,0.7949,2678.6,2678.5,0.10308775]
[1727566594679,0.7949,2678.6,2678.3,0.97362388]
[1727566594889,0.7949,2678.6,2678.5,0.10308775]
[1727566595362,0.7949,2678.6,2678.3,3.73368]
[1727566595538,0.7949,2678.6,2678.4,0.10308775]
[1727566610101,3.73343,2678.5,2678.4,0.10308775]
[1727566610583,3.73343,2678.5,2678.1,0.78598869]
[1727566610757,3.73343,2678.5,2678.4,0.10261339]
[1727566610758,6.06153159,2678.5,2678.4,0.10261339]
[1727566610948,3.73367,2678.4,2678.0,4.52010869]
[1727566611144,4.49797,2678.3,2678.1,2.43989585]
[1727566611371,4.49797,2678.3,2678.0,0.78598869]
[1727566611593,4.49797,2678.3,2678.1,2.43991753]
[1727566611776,4.49797,2678.3,2678.0,0.78598869]
[1727566611944,4.49797,2678.3,2678.1,2.43993885]
[1727566612149,4.49797,2678.3,2678.0,0.78598869]
[1727566612453,4.49797,2678.3,2678.1,0.97597562]
[1727566612673,4.49797,2678.3,2677.9,4.52023869]
[1727566612876,4.49797,2678.3,2678.0,2.43994768]
[1727566613087,4.49797,2678.3,2677.9,4.52023869]
[1727566613253,4.49797,2678.3,2678.0,2.4399437]
[1727566613593,4.49797,2678.3,2678.1,0.97597748]
[1727566613789,0.7642,2678.3,2677.9,5.73051653]
[1727566613965,3.73357,2678.4,2678.0,2.43985913]
[1727566614161,3.73357,2678.4,2678.1,2.43985755]
[1727566614392,3.73357,2678.4,2678.0,5.53336744]
[1727566614699,3.73357,2678.4,2678.1,2.43986213]
[1727566614987,3.73357,2678.4,2678.0,4.74737875]
[1727566615195,3.73357,2678.4,2678.1,2.43987598]
[1727566615351,3.73357,2678.4,2678.0,1.79925744]
[1727566615694,3.73357,2678.4,2678.1,2.43985922]
[1727566616009,3.73357,2678.4,2678.0,1.01326875]
[1727566616148,3.73357,2678.4,2678.1,2.43988333]
[1727566616509,7.46724,2678.4,2678.0,1.01326875]
[1727566616809,7.46724,2678.4,2678.1,2.43988828]
[1727566617014,7.46724,2678.4,2678.0,1.01326875]
[1727566617174,7.46724,2678.4,2678.1,2.43987041]
[1727566617374,7.46724,2678.4,2678.0,1.01326875]
[1727566617687,3.73357,2678.4,2678.1,2.43986578]
[1727566617884,3.73357,2678.4,2678.0,1.01326875]
[1727566618098,3.73357,2678.4,2678.1,0.9759464]
[1727566618099,7.46726,2678.4,2678.1,0.9759464]
[1727566618409,7.46726,2678.4,2678.0,1.01326875]
[1727566618598,7.46726,2678.4,2678.1,0.97595111]
[1727566618796,7.46726,2678.4,2678.0,1.01326875]
[1727566618976,7.46726,2678.4,2678.1,0.97594456]
[1727566619178,7.46726,2678.4,2678.0,1.01326875]
[1727566619380,7.46726,2678.4,2678.1,0.97594455]
[1727566619586,3.73357,2678.4,2678.0,1.01326875]
[1727566619787,3.73357,2678.4,2678.1,2.4398409]
[1727566620004,7.46724,2678.4,2678.0,1.79925744]
[1727566620278,7.46724,2678.4,2678.1,2.43981303]
[1727566620477,7.46724,2678.4,2678.0,1.79925744]
[1727566620814,7.46724,2678.4,2678.1,2.43981377]
[1727566620972,3.73357,2678.4,2678.1,1.33784474]
[1727566621176,3.73357,2678.4,2678.2,0.97591886]
[1727566621376,3.73357,2678.4,2678.1,1.33784474]
[1727566621577,3.73357,2678.4,2678.2,1.67050227]
[1727566621812,3.73357,2678.4,2678.2,0.69458987]
[1727566623980,3.73357,2678.4,2678.1,1.33784474]
[1727566624317,3.73357,2678.4,2678.2,0.9759335]
[1727566624492,3.73357,2678.4,2678.1,1.33784474]
[1727566624692,3.73357,2678.4,2678.2,0.97593329]
[1727566624892,3.73357,2678.4,2678.1,0.7845]
[1727566625109,3.73357,2678.4,2678.2,0.9759289]
[1727566625284,3.73357,2678.4,2678.2,0.10272222]
[1727566627507,4.49765,2678.5,2678.2,0.10272222]
[1727566629186,4.49763,2678.5,2678.2,0.10272222]
[1727566631825,8.23119,2678.5,2678.2,0.10272222]
[1727566631998,4.49763,2678.5,2678.2,0.10272222]
[1727566632501,8.23117,2678.5,2678.2,0.10272222]
[1727566633024,3.7336,2678.4,2678.2,0.10272222]
[1727566638429,7.46727,2678.4,2678.2,0.10272222]
[1727566638637,3.7336,2678.4,2678.2,0.10272222]
[1727566645459,4.49765,2678.5,2678.2,0.10272222]
[1727566646014,3.73345,2678.5,2678.3,0.97621957]
[1727566646352,3.73345,2678.5,2678.4,0.10298665]
[1727566646815,3.73345,2678.5,2678.1,6.32608575]
[1727566647014,3.73345,2678.5,2678.2,2.54365511]
[1727566647216,7.46698,2678.5,2678.3,0.97626738]
[1727566647452,3.73345,2678.5,2678.2,0.10298665]
[1727566647610,3.73345,2678.5,2678.3,2.44076718]
[1727566647816,3.73345,2678.5,2678.3,0.10298665]
[1727566648138,3.73345,2678.5,2678.2,0.76068443]
[1727566648340,3.73345,2678.5,2678.4,0.10298665]
[1727566648537,3.73345,2678.5,2678.2,0.78598869]
[1727566648730,3.73345,2678.5,2678.4,0.10298665]
[1727566648933,3.73345,2678.5,2678.1,2.59211575]
[1727566649144,3.73345,2678.5,2678.4,0.10298665]
[1727566649358,3.73345,2678.5,2678.1,2.59211575]
[1727566649538,3.73345,2678.5,2678.4,0.10298665]
[1727566649740,3.73345,2678.5,2678.1,2.59211575]
[1727566650059,3.73345,2678.5,2678.2,2.44105573]
[1727566650261,3.73345,2678.5,2678.3,1.07940894]
[1727566650582,4.49057,2678.4,2678.3,0.10298665]
[1727566650761,4.49057,2678.4,2678.3,1.07947505]
[1727566653956,4.49057,2678.4,2678.3,0.10298665]
[1727566654163,4.49057,2678.4,2678.1,0.78598869]
[1727566654384,4.49057,2678.4,2678.3,0.10286222]
[1727566654556,4.49057,2678.4,2678.3,0.97669955]
[1727566654767,4.49057,2678.4,2678.3,1.07956177]
[1727566655949,0.757,2678.4,2678.3,1.07956177]
[1727566656292,0.757,2678.4,2678.3,1.07970911]
[1727566657794,3.73343,2678.5,2678.3,1.07970911]
[1727566657958,3.73343,2678.5,2678.3,0.10286222]
[1727566658293,3.73343,2678.5,2678.4,0.10286222]
[1727566658584,3.73343,2678.5,2678.1,4.51991869]
[1727566658784,3.73343,2678.5,2678.4,0.10286222]
[1727566658984,3.73343,2678.5,2678.1,4.51991869]
[1727566659194,3.73343,2678.5,2678.4,0.10286222]
[1727566659392,3.73343,2678.5,2678.1,4.51991869]
[1727566659577,3.73343,2678.5,2678.4,0.10286222]
[1727566659888,4.4903,2678.6,2678.4,0.10286222]
[1727566660096,3.73343,2678.5,2678.1,0.78598869]
[1727566660246,3.73343,2678.5,2678.2,2.44240213]
[1727566660443,3.73343,2678.5,2678.3,0.97696085]
[1727566660686,3.73343,2678.5,2678.1,1.96391299]
[1727566660848,3.73343,2678.5,2678.2,2.44241173]
[1727566661048,3.73343,2678.5,2678.3,2.44241173]
[1727566661291,3.73343,2678.5,2678.1,1.96391299]
[1727566661489,3.73343,2678.5,2678.2,2.44241993]
[1727566661796,3.73343,2678.5,2678.3,2.44241993]
[1727566661979,3.73343,2678.5,2678.1,1.96391299]
[1727566662175,3.73343,2678.5,2678.2,2.44244643]
[1727566662350,3.73343,2678.5,2678.3,2.44244643]
[1727566662550,3.73343,2678.5,2678.1,1.96391299]
[1727566662795,3.73343,2678.5,2678.2,2.44249258]
[1727566663098,3.73343,2678.5,2678.3,2.44249258]
[1727566663388,3.73343,2678.5,2678.2,0.78598869]
[1727566663716,3.73343,2678.5,2678.3,2.44251371]
[1727566663855,3.73343,2678.5,2678.2,0.78598869]
[1727566664051,3.73343,2678.5,2678.3,0.97701857]
[1727566664389,3.73343,2678.5,2678.1,0.78598869]
[1727566664582,3.73343,2678.5,2678.2,2.44255117]
[1727566664886,3.73343,2678.5,2678.3,2.4425859]
[1727566665088,3.73343,2678.5,2678.2,0.78598869]
[1727566665278,3.73343,2678.5,2678.3,2.44259363]
[1727566665584,3.73343,2678.5,2678.2,0.78598869]
[1727566665789,3.73343,2678.5,2678.3,2.44265931]
[1727566666083,3.73343,2678.5,2678.2,0.78598869]
[1727566666296,3.73343,2678.5,2678.3,2.44267612]
[1727566666450,3.73343,2678.5,2678.2,0.78598869]
[1727566666654,3.73343,2678.5,2678.3,2.44267675]
[1727566666876,3.73343,2678.5,2678.2,0.78598869]
[1727566667071,3.73343,2678.5,2678.3,2.44266322]
[1727566667279,3.73343,2678.5,2678.2,0.78598869]
[1727566667475,3.73343,2678.5,2678.3,2.44266735]
[1727566667802,3.73343,2678.5,2678.2,0.78598869]
[1727566667993,3.73343,2678.5,2678.3,2.44266212]
[1727566668155,3.73343,2678.5,2678.2,0.78598869]
[1727566668354,3.73343,2678.5,2678.3,2.44267681]
[1727566668560,3.73343,2678.5,2678.2,0.78598869]
[1727566668797,3.73343,2678.5,2678.3,2.44267325]
[1727566669098,3.73343,2678.5,2678.2,0.78598869]
[1727566669270,3.73343,2678.5,2678.3,2.4426562]
[1727566669485,3.73343,2678.5,2678.2,0.78598869]
[1727566669692,3.73343,2678.5,2678.3,2.44266315]
[1727566669889,3.73343,2678.5,2678.2,0.78598869]
[1727566670095,3.73343,2678.5,2678.3,2.54555175]
[1727566670297,3.73343,2678.5,2678.3,0.10290109]
[1727566670594,3.73343,2678.5,2678.2,0.78598869]
[1727566670907,3.73343,2678.5,2678.3,2.44268163]
[1727566671093,3.73343,2678.5,2678.3,0.10290109]
[1727566671294,3.73343,2678.5,2678.2,0.78598869]
[1727566671492,3.73343,2678.5,2678.4,0.10290109]
[1727566671694,3.73343,2678.5,2678.2,0.78598869]
[1727566671996,3.73343,2678.5,2678.4,0.10290109]
[1727566672199,3.73343,2678.5,2678.2,0.78598869]
[1727566672388,3.73343,2678.5,2678.4,0.10290109]
[1727566672570,3.73343,2678.5,2678.2,0.78598869]
[1727566672773,3.73343,2678.5,2678.4,0.10290109]
[1727566672987,3.73343,2678.5,2678.2,0.78598869]
[1727566673183,3.73343,2678.5,2678.4,0.10290109]
[1727566673411,3.73343,2678.5,2678.2,0.78598869]
[1727566673707,3.73343,2678.5,2678.3,2.4426932]
[1727566673912,3.73343,2678.5,2678.3,0.10290109]
[1727566674075,3.73343,2678.5,2678.2,0.78598869]
[1727566674275,3.73343,2678.5,2678.3,2.54560109]
[1727566674474,3.73343,2678.5,2678.3,0.10290109]
[1727566674708,3.73343,2678.5,2678.2,0.78598869]
[1727566674877,3.73343,2678.5,2678.4,0.10290109]
[1727566675909,3.73343,2678.5,2678.2,0.78598869]
[1727566676211,3.73343,2678.5,2678.4,0.10290109]
[1727566676407,3.73343,2678.5,2678.2,0.78598869]
[1727566676714,3.73343,2678.5,2678.3,2.44271267]
[1727566677014,3.73343,2678.5,2678.4,0.97707901]
[1727566677179,3.73343,2678.5,2678.3,0.10290109]
[1727566677508,3.73343,2678.5,2678.4,0.10290109]
[1727566677695,3.73343,2678.5,2678.4,0.97706914]
[1727566677906,3.73343,2678.5,2678.4,0.10290109]
[1727566678205,3.73343,2678.5,2678.2,0.78598869]
[1727566678522,3.73343,2678.5,2678.3,2.44270143]
[1727566678677,3.73343,2678.5,2678.3,0.10290109]
[1727566679012,3.73343,2678.5,2678.2,0.78598869]
[1727566679199,3.73343,2678.5,2678.4,0.10290109]
[1727566679376,3.73343,2678.5,2678.2,0.78598869]
[1727566679575,3.73343,2678.5,2678.4,0.10290109]
[1727566679815,3.73343,2678.5,2678.2,0.78598869]
[1727566680111,3.73343,2678.5,2678.3,2.54558848]
[1727566680337,3.73343,2678.5,2678.3,0.10289332]
[1727566680498,3.73343,2678.5,2678.2,0.78598869]
[1727566680708,3.73343,2678.5,2678.3,2.5456106]
[1727566681015,3.73343,2678.5,2678.3,0.10289332]
[1727566681311,3.73343,2678.5,2678.2,0.78598869]
[1727566681508,3.73343,2678.5,2678.4,0.10289332]
[1727566681710,3.73343,2678.5,2678.2,0.78598869]
[1727566682014,3.73343,2678.5,2678.4,0.10289332]
[1727566682495,3.73343,2678.5,2678.2,0.78598869]
[1727566682702,3.73343,2678.5,2678.3,2.54560502]
[1727566683011,3.73343,2678.5,2678.3,0.10289332]
[1727566683401,3.73343,2678.5,2678.2,0.78598869]
[1727566683602,3.73343,2678.5,2678.3,2.4427202]
[1727566683774,3.73343,2678.5,2678.4,0.97708875]
[1727566683975,3.73343,2678.5,2678.2,0.78598869]
[1727566684211,3.73343,2678.5,2678.4,0.10289332]
[1727566684397,3.73343,2678.5,2678.2,0.78598869]
[1727566684602,3.73343,2678.5,2678.4,0.10289332]
[1727566684809,3.73343,2678.5,2678.2,0.78598869]
[1727566684990,3.73343,2678.5,2678.4,0.10289332]
[1727566685476,3.73343,2678.5,2678.2,0.78598869]
[1727566685676,3.73343,2678.5,2678.3,2.5456269]
[1727566685876,3.73343,2678.5,2678.3,0.10289332]
[1727566686103,3.73343,2678.5,2678.2,0.78598869]
[1727566686417,3.73343,2678.5,2678.3,2.44274507]
[1727566686579,3.73343,2678.5,2678.3,0.10289332]
[1727566686775,3.73343,2678.5,2678.2,0.78598869]
[1727566686998,4.49036,2678.6,2678.4,0.10289332]
[1727566687315,3.73343,2678.5,2678.2,0.78598869]
[1727566687520,3.73343,2678.5,2678.3,2.44274256]
[1727566687727,3.73343,2678.5,2678.2,0.78598869]
[1727566687875,3.73343,2678.5,2678.3,2.44273613]
[1727566688218,3.73343,2678.5,2678.2,0.78598869]
[1727566688508,3.73343,2678.5,2678.3,2.44274536]
[1727566688710,3.73343,2678.5,2678.2,0.78598869]
[1727566688913,3.73343,2678.5,2678.3,2.44275343]
[1727566689117,3.73343,2678.5,2678.2,0.78598869]
[1727566689418,3.73343,2678.5,2678.3,2.44275242]
[1727566689603,3.73343,2678.5,2678.2,0.78598869]
[1727566689804,3.73343,2678.5,2678.3,2.44274415]
[1727566690124,3.73343,2678.5,2678.2,0.78598869]
[1727566690416,3.73343,2678.5,2678.3,2.44274603]
[1727566690614,3.73343,2678.5,2678.2,0.78598869]
[1727566690819,3.73343,2678.5,2678.3,2.44275086]
[1727566690971,3.73343,2678.5,2678.2,0.78598869]
[1727566691177,3.73343,2678.5,2678.3,2.44275196]
[1727566691377,3.73343,2678.5,2678.2,0.78598869]
[1727566691577,3.73343,2678.5,2678.3,2.4427456]
[1727566691777,3.73343,2678.5,2678.2,0.78598869]
[1727566692003,3.73343,2678.5,2678.3,2.44273433]
[1727566692235,3.73343,2678.5,2678.4,0.97709373]
[1727566692740,3.73343,2678.5,2678.2,0.78598869]
[1727566692903,3.73343,2678.5,2678.3,2.44276613]
[1727566693099,3.73343,2678.5,2678.2,0.78598869]
[1727566693304,3.73343,2678.5,2678.3,2.44278895]
[1727566693505,3.73343,2678.5,2678.2,0.78598869]
[1727566693706,3.73343,2678.5,2678.3,2.44278211]
[1727566693906,3.73343,2678.5,2678.2,0.78598869]
[1727566694105,3.73343,2678.5,2678.3,2.442782]
[1727566694341,3.73343,2678.5,2678.2,0.78598869]
[1727566694541,3.73343,2678.5,2678.3,2.4428353]
[1727566694717,3.73343,2678.5,2678.2,0.78598869]
[1727566694920,3.73343,2678.5,2678.3,2.44283508]
[1727566695122,3.73343,2678.5,2678.2,0.78598869]
[1727566695325,3.73343,2678.5,2678.3,2.44290517]
[1727566695670,7.46696,2678.5,2678.2,0.78598869]
[1727566695804,7.46696,2678.5,2678.3,2.44291291]
[1727566696005,7.46696,2678.5,2678.2,0.78598869]
[1727566696343,7.46696,2678.5,2678.3,2.44298166]
[1727566696553,7.46696,2678.5,2678.2,0.78598869]
[1727566696846,7.46696,2678.5,2678.3,2.4429703]
[1727566697041,3.73343,2678.5,2678.4,0.97718766]
[1727566697205,3.73343,2678.5,2678.2,0.78598869]
[1727566697401,3.73343,2678.5,2678.3,2.44296478]
[1727566697607,3.73343,2678.5,2678.4,0.97718591]
[1727566698244,3.73343,2678.5,2678.2,0.78598869]
[1727566698544,3.73343,2678.5,2678.3,2.44295808]
[1727566698708,3.73343,2678.5,2678.2,0.78598869]
[1727566698910,3.73343,2678.5,2678.3,2.4429563]
[1727566699139,3.73343,2678.5,2678.4,0.97718332]
[1727566699859,3.73343,2678.5,2678.2,0.78598869]
[1727566700016,3.73343,2678.5,2678.3,2.44297273]
[1727566700216,3.73343,2678.5,2678.3,0.10291666]
[1727566700453,3.73343,2678.5,2678.2,0.78598869]
[1727566700663,3.73343,2678.5,2678.4,0.10291666]
[1727566701136,3.73343,2678.5,2678.2,0.78598869]
[1727566701344,3.73343,2678.5,2678.4,0.10291666]
[1727566701515,3.73343,2678.5,2678.2,0.78598869]
[1727566701716,3.73343,2678.5,2678.3,2.54593594]
[1727566701916,3.73343,2678.5,2678.3,0.10291666]
[1727566702113,3.73343,2678.5,2678.2,0.78598869]
[1727566702316,3.73343,2678.5,2678.3,2.54595204]
[1727566702543,3.73343,2678.5,2678.3,0.10293222]
[1727566702739,3.73343,2678.5,2678.2,0.78598869]
[1727566702944,3.73343,2678.5,2678.4,0.10293222]